[Event "HUN-chT Youth 2019"]
[Site "Budapest"]
[Date "2019.10.29"]
[Round "7.32"]
[White "Bako, Martin"]
[Black "Barasits, Balint"]
[Result "1-0"]
[ECO "D45"]
[WhiteElo "1857"]
[BlackElo "1988"]
[Annotator "NA"]
[PlyCount "85"]
[EventDate "2019.10.26"]
[EventType "team-tourn"]
[EventCountry "HUN"]
[SourceTitle "playchess.com"]
[Source "ChessBase"]
[SourceQuality "1"]
[TimeControl "5400+30"]

1. d4 {[%emt 0:00:00]} Nf6 {[%emt 0:00:22]} 2. c4 {[%emt 0:00:00]} e6 {[%emt 0:00:25]} 3. Nc3 {[%emt 0:00:14]} d5 {[%emt 0:02:20]} 4. Nf3 Nbd7 {[%emt 0:00:56]} 5. e3 {[%emt 0:03:32]} c6 {[%emt 0:00:06]} 6. Bd2 {[%emt 0:01:08]} Be7 {[%emt 0:04:16]} 7. cxd5 {[%emt 0:03:35] D45: Semi-Slav: 5 e3} (7. Bd3 dxc4 8. Bxc4 b5 9. Be2 Bb7 10. O-O O-O 11. a3 a5 12. Qc2 Rc8 13. Rfc1 b4 14. axb4 axb4 15. Na4 c5 16. dxc5 Nxc5 17. Bxb4 Nce4 18. Qb3 Bd5 19. Rxc8 Qxc8 20. Qa3 Bxb4 21. Qxb4 {1-0 (44) Malaniuk,V (2615)-Apicella,M (2505) Cappelle-la-Grande 1995}) 7... exd5 {[%emt 0:02:07]} 8. Bd3 {[%emt 0:01:02]} Nf8 {[%emt 0:02:53]} 9. Qc2 {[%emt 0:05:30]} Ng6 {[%emt 0:01:38]} 10. h3 {[%emt 0:05:05]} O-O $146 {[%emt 0:01:32]} ({Predecessor:} 10... Bd6 11. a3 Bd7 12. O-O O-O 13. Ng5 Qc7 {½-½ (29) Guidi,G-Bertolucci,G Italy 1986}) 11. O-O {[%emt 0:02:26]} Qc7 {[%emt 0:05:10]} 12. Rfc1 {[%emt 0:06:29]} Bd7 {[%emt 0:18:26]} 13. Qb3 {[%emt 0:02:13]} Qb6 {[%emt 0:02:43]} 14. Qc2 {[%emt 0:08:35]} Qd8 {[%emt 0:03:48]} 15. Na4 {[%emt 0:02:03]} Qc8 {[%emt 0:10:20]} 16. Qd1 {[%emt 0:15:54]} Bd6 {[%emt 0:00:56]} 17. Nc5 {[%emt 0:01:19]} Bxc5 {[%emt 0:02:13]} 18. Rxc5 {[%emt 0:04:59]} Bf5 {[%emt 0:00:03]} 19. Bb4 {[%emt 0:03:24]} Re8 $14 {[%emt 0:02:36]} 20. Rcc1 {[%emt 0:09:17]} Bxd3 {[%emt 0:04:22]} 21. Qxd3 {[%emt 0:00:14]} Ne4 {[%emt 0:00:03]} 22. Nd2 {[%emt 0:01:44]} Ng5 {[%emt 0:00:40]} 23. Bd6 {[%emt 0:01:21]} Qe6 {[%emt 0:01:28]} 24. Bg3 {[%emt 0:00:46]} Qe7 {[%emt 0:04:17]} 25. Qf5 {[%emt 0:04:38]} Ne6 {[%emt 0:03:57]} 26. Nf3 Qd7 {[%emt 0:05:12]} 27. Ng5 {[%emt 0:01:47]} Rad8 {[%emt 0:00:31]} 28. Nxe6 {[%emt 0:00:14]} fxe6 {[%emt 0:00:19]} 29. Qg4 {[%emt 0:00:39]} Qf7 {[%emt 0:02:36]} 30. Rf1 {[%emt 0:03:04]} Qd7 {[%emt 0:10:14]} 31. Rad1 {[%emt 0:01:13]} e5 {[%emt 0:01:21]} 32. Qxd7 {[%emt 0:01:14]} Rxd7 {[%emt 0:00:02]} 33. Rd3 {[%emt 0:01:36]} exd4 {[%emt 0:00:24]} 34. Rxd4 {[%emt 0:00:09]} Ne5 {[%emt 0:00:06]} 35. Rfd1 {[%emt 0:00:27]} Nc4 {[%emt 0:02:21]} 36. Rxc4 {[%emt 0:00:22]} dxc4 {[%emt 0:01:09]} 37. Rxd7 {[%emt 0:00:05]} b5 {[%emt 0:00:04]} 38. Rxa7 {[%emt 0:00:37]} b4 {[%emt 0:00:04]} 39. Rb7 {[%emt 0:04:07]} c5 {[%emt 0:00:32]} 40. Rb8 {[%emt 0:01:33]} Kf7 {[%emt 0:00:30]} 41. Rxe8 {[%emt 0:01:12]} c3 {[%emt 0:00:22]} 42. bxc3 {[%emt 0:00:14]} bxc3 {[%emt 0:00:05]} 43. Rc8 {[%emt 0:00:03]} 1-0

[Event "HUN-chT Youth 2019"]
[Site "Budapest"]
[Date "2019.10.29"]
[Round "7.33"]
[White "Kiraly, Barnabas"]
[Black "Bako, Milan"]
[Result "0-1"]
[ECO "B01"]
[WhiteElo "1742"]
[BlackElo "1605"]
[Annotator "NA"]
[PlyCount "117"]
[EventDate "2019.10.26"]
[EventType "team-tourn"]
[EventCountry "HUN"]
[SourceTitle "playchess.com"]
[Source "ChessBase"]
[SourceQuality "1"]
[TimeControl "5400+30"]

1. e4 {[%emt 0:00:00]} d5 {[%emt 0:00:00]} 2. exd5 {[%emt 0:00:00]} Qxd5 {[%emt 0:00:00]} 3. Nc3 {[%emt 0:00:00]} Qd8 {[%emt 0:00:00]} 4. g3 {[%emt 0:00:59]} e5 {[%emt 0:00:22]} 5. Bg2 {[%emt 0:00:06]} Bc5 {[%emt 0:00:18]} 6. Nge2 {[%emt 0:01:17]} Nc6 {[%emt 0:00:26]} 7. O-O {[%emt 0:00:18]} Nge7 {[%emt 0:01:15]} 8. d3 {[%emt 0:03:54]} O-O {[%emt 0:00:26]} 9. Be3 {[%emt 0:00:15]} Bb6 {[%emt 0:01:07]} 10. Bxb6 {[%emt 0:00:51]} axb6 {[%emt 0:00:07]} 11. f4 {[%emt 0:00:16]} Ng6 {[%emt 0:00:53]} 12. f5 {[%emt 0:00:30]} Nh8 {[%emt 0:02:00]} 13. Ne4 {[%emt 0:02:30]} f6 {[%emt 0:00:45]} 14. g4 {[%emt 0:01:16]} Nf7 {[%emt 0:00:26]} 15. a3 {[%emt 0:02:54]} Nh6 {[%emt 0:02:56]} 16. h3 {[%emt 0:02:03]} Nd4 {[%emt 0:00:31]} 17. N2g3 {[%emt 0:02:03]} Nf7 {[%emt 0:02:41]} 18. Qd2 {[%emt 0:01:39]} h6 {[%emt 0:02:06]} 19. Kf2 {[%emt 0:05:50]} Bd7 {[%emt 0:01:42]} 20. b3 {[%emt 0:07:36]} Bc6 {[%emt 0:00:49]} 21. Rh1 {[%emt 0:03:10]} Ng5 {[%emt 0:00:58]} 22. h4 {[%emt 0:03:33]} Nxe4+ {[%emt 0:00:24]} 23. Nxe4 {[%emt 0:01:00]} h5 {[%emt 0:05:16]} 24. Bh3 {[%emt 0:04:42]} Nxb3 {[%emt 0:01:50]} 25. cxb3 {[%emt 0:01:59]} Bxe4 {[%emt 0:00:06]} 26. Rhd1 {[%emt 0:00:33]} Qd4+ {[%emt 0:00:10]} 27. Qe3 {[%emt 0:02:41]} Qxe3+ {[%emt 0:00:41]} 28. Kxe3 {[%emt 0:00:02]} hxg4 {[%emt 0:00:09]} 29. dxe4 {[%emt 0:02:19]} gxh3 {[%emt 0:00:07]} 30. Rd7 {[%emt 0:01:22]} Rf7 {[%emt 0:00:04]} 31. Rd2 {[%emt 0:00:06]} h2 {[%emt 0:01:14]} 32. Rxh2 {[%emt 0:00:23]} Rd7 {[%emt 0:00:04]} 33. Rd2 {[%emt 0:00:52]} Rad8 {[%emt 0:00:05]} 34. Rad1 {[%emt 0:01:36]} Rxd2 {[%emt 0:00:08]} 35. Rxd2 {[%emt 0:00:01]} Rxd2 {[%emt 0:00:01]} 36. Kxd2 {[%emt 0:00:02]} Kh7 {[%emt 0:00:11]} 37. a4 {[%emt 0:00:45]} Kh6 {[%emt 0:00:11]} 38. b4 {[%emt 0:00:10]} Kh5 {[%emt 0:00:03]} 39. Kc3 {[%emt 0:00:15]} Kxh4 {[%emt 0:00:10]} 40. Kc4 {[%emt 0:00:06]} Kg4 {[%emt 0:00:21]} 41. Kd5 {[%emt 0:02:00]} c6+ {[%emt 0:00:44]} 42. Kd6 {[%emt 0:00:21]} Kf4 {[%emt 0:01:29]} 43. Kc7 {[%emt 0:00:22]} Kxe4 {[%emt 0:00:13]} 44. Kxb6 {[%emt 0:01:21]} Kd5 {[%emt 0:00:11]} 45. Kxb7 {[%emt 0:00:10]} e4 {[%emt 0:00:04]} 46. a5 {[%emt 0:00:08]} e3 {[%emt 0:00:03]} 47. a6 {[%emt 0:00:04]} e2 {[%emt 0:00:02]} 48. a7 {[%emt 0:00:05]} e1=Q {[%emt 0:00:06]} 49. a8=Q {[%emt 0:00:06]} Qxb4+ {[%emt 0:00:06]} 50. Kc7 {[%emt 0:00:11]} Qd6+ {[%emt 0:01:02]} 51. Kb6 {[%emt 0:00:14]} Ke5 {[%emt 0:01:08]} 52. Qc8 {[%emt 0:01:01]} c5+ {[%emt 0:00:26]} 53. Ka5 {[%emt 0:00:17]} c4 {[%emt 0:01:27]} 54. Ka4 {[%emt 0:00:38]} Kd4 {[%emt 0:00:56]} 55. Qe8 {[%emt 0:00:41]} c3 {[%emt 0:02:39]} 56. Qc8 {[%emt 0:01:35]} Kd3 {[%emt 0:00:55]} 57. Qe6 {[%emt 0:04:02]} Qd4+ {[%emt 0:02:00]} 58. Kb3 {[%emt 0:00:13]} c2 {[%emt 0:01:03]} 59. Qc6 0-1

[Event "HUN-chT Youth 2019"]
[Site "Budapest"]
[Date "2019.10.29"]
[Round "7.34"]
[White "Szabo, Andrea Erzsebet"]
[Black "Petroczy, Zoltan"]
[Result "1-0"]
[ECO "E38"]
[WhiteElo "1583"]
[BlackElo "1573"]
[Annotator "NA"]
[PlyCount "77"]
[EventDate "2019.10.26"]
[EventType "team-tourn"]
[EventCountry "HUN"]
[SourceTitle "playchess.com"]
[Source "ChessBase"]
[SourceQuality "1"]
[TimeControl "5400+30"]

1. d4 {[%emt 0:00:00]} Nf6 {[%emt 0:00:00]} 2. c4 {[%emt 0:00:00]} e6 {[%emt 0:00:00]} 3. Nc3 {[%emt 0:00:00]} Bb4 {[%emt 0:00:00]} 4. Qc2 {[%emt 0:00:07]} c5 {[%emt 0:00:21]} 5. dxc5 {[%emt 0:01:13]} Bxc5 {[%emt 0:00:09]} 6. Nf3 {[%emt 0:01:17]} Nc6 {[%emt 0:01:10]} 7. Bg5 {[%emt 0:00:28]} O-O {[%emt 0:01:51]} 8. e3 {[%emt 0:02:47]} h6 {[%emt 0:01:43]} 9. Bh4 {[%emt 0:04:07]} Be7 {[%emt 0:01:43]} 10. a3 {[%emt 0:01:49]} a6 {[%emt 0:04:12]} 11. Be2 {[%emt 0:02:09]} b6 {[%emt 0:02:48]} 12. O-O {[%emt 0:00:20]} Bb7 {[%emt 0:01:15]} 13. Rad1 {[%emt 0:04:18]} Qc7 {[%emt 0:04:28]} 14. Bg3 {[%emt 0:01:59]} d6 {[%emt 0:00:54]} 15. b4 {[%emt 0:08:09]} Rac8 {[%emt 0:08:33]} 16. h3 {[%emt 0:09:06]} Qb8 {[%emt 0:06:54]} 17. Qd3 {[%emt 0:03:14]} Rfd8 {[%emt 0:04:48]} 18. c5 {[%emt 0:09:58]} bxc5 {[%emt 0:02:54]} 19. bxc5 {[%emt 0:00:28]} e5 {[%emt 0:04:29]} 20. Qc2 dxc5 {[%emt 0:09:13]} 21. Rxd8+ {[%emt 0:21:48]} Rxd8 {[%emt 0:00:36]} 22. Na4 {[%emt 0:00:35]} Nd7 {[%emt 0:02:04]} 23. Rd1 {[%emt 0:00:48]} Qc8 {[%emt 0:07:29]} 24. Qc3 {[%emt 0:00:56]} Bf6 {[%emt 0:01:47]} 25. Qc2 {[%emt 0:02:35]} Ne7 {[%emt 0:01:31]} 26. Nxc5 {[%emt 0:02:54]} Nxc5 {[%emt 0:00:58]} 27. Rxd8+ {[%emt 0:00:13]} Qxd8 {[%emt 0:00:01]} 28. Qxc5 {[%emt 0:00:33]} e4 {[%emt 0:00:51]} 29. Ne5 {[%emt 0:06:54]} Nf5 {[%emt 0:01:58]} 30. Bh2 {[%emt 0:01:17]} Qd2 {[%emt 0:05:20]} 31. Bf1 {[%emt 0:01:01]} Be7 {[%emt 0:08:10]} 32. Qc7 {[%emt 0:05:13]} Bd5 {[%emt 0:00:49]} 33. Qd7 {[%emt 0:00:47]} g6 {[%emt 0:02:21]} 34. Qe8+ {[%emt 0:04:14]} Kg7 {[%emt 0:03:41]} 35. g4 {[%emt 0:00:43]} Nxe3 {[%emt 0:00:22]} 36. Nd7 {[%emt 0:05:02]} Bh4 {[%emt 0:05:08]} 37. Be5+ {[%emt 0:00:29]} f6 {[%emt 0:00:15]} 38. Qf8+ {[%emt 0:00:26]} Kh7 {[%emt 0:00:07]} 39. Nxf6+ {[%emt 0:00:41]} 1-0

[Event "HUN-chT Youth 2019"]
[Site "Budapest"]
[Date "2019.10.29"]
[Round "7.35"]
[White "Farkas, Boglarka"]
[Black "Szalovszky, Viktoria"]
[Result "1/2-1/2"]
[ECO "B01"]
[WhiteElo "1391"]
[BlackElo "1507"]
[Annotator "NA"]
[PlyCount "111"]
[EventDate "2019.10.26"]
[EventType "team-tourn"]
[EventCountry "HUN"]
[SourceTitle "playchess.com"]
[Source "ChessBase"]
[SourceQuality "1"]
[TimeControl "5400+30"]

1. e4 {[%emt 0:00:00]} d5 {[%emt 0:00:00]} 2. exd5 {[%emt 0:00:00]} Qxd5 {[%emt 0:00:00]} 3. Nc3 {[%emt 0:00:00]} Qa5 {[%emt 0:00:00]} 4. d4 {[%emt 0:00:00]} Bf5 {[%emt 0:00:22]} 5. Nf3 {[%emt 0:00:48]} Nf6 {[%emt 0:00:33]} 6. Bd2 {[%emt 0:00:44]} c6 {[%emt 0:00:17]} 7. Bc4 {[%emt 0:00:44]} e6 {[%emt 0:00:58]} 8. O-O {[%emt 0:03:02]} Bb4 {[%emt 0:02:41]} 9. Nb1 {[%emt 0:01:35]} O-O {[%emt 0:02:42]} 10. a3 {[%emt 0:01:02]} Bxd2 {[%emt 0:00:20]} 11. Nbxd2 {[%emt 0:00:08]} Qc7 {[%emt 0:01:26]} 12. Re1 {[%emt 0:02:49]} Nbd7 {[%emt 0:05:51]} 13. Nf1 {[%emt 0:02:11]} Nb6 {[%emt 0:00:38]} 14. Bd3 {[%emt 0:00:55]} Bg4 {[%emt 0:03:20]} 15. h3 {[%emt 0:02:18]} Bh5 {[%emt 0:00:07]} 16. Ng3 {[%emt 0:00:23]} Bxf3 {[%emt 0:05:47]} 17. Qxf3 {[%emt 0:00:26]} Nbd5 {[%emt 0:52:11]} 18. Ne4 {[%emt 0:00:30]} Nd7 {[%emt 0:00:30]} 19. Bc4 {[%emt 0:00:30]} Rfe8 {[%emt 0:00:30]} 20. Bxd5 {[%emt 0:00:30]} exd5 {[%emt 0:00:30]} 21. Nd2 {[%emt 0:00:30]} Nf6 {[%emt 0:00:30]} 22. Re2 {[%emt 0:00:30]} Rxe2 {[%emt 0:00:30]} 23. Qxe2 {[%emt 0:00:30]} Re8 {[%emt 0:00:30]} 24. Qd3 {[%emt 0:00:30]} Re6 {[%emt 0:00:30]} 25. Nf3 {[%emt 0:00:30]} Qe7 {[%emt 0:00:30]} 26. Ne5 {[%emt 0:00:30]} Nd7 {[%emt 0:00:30]} 27. Nxd7 {[%emt 0:00:30]} Qxd7 {[%emt 0:00:30]} 28. Rd1 {[%emt 0:00:30]} Qe7 {[%emt 0:00:30]} 29. Kf1 {[%emt 0:00:30]} f6 {[%emt 0:00:30]} 30. Qd2 {[%emt 0:00:30]} Kf7 {[%emt 0:00:30]} 31. Re1 {[%emt 0:00:30]} Rxe1+ {[%emt 0:00:30]} 32. Qxe1 {[%emt 0:00:30]} Qd6 {[%emt 0:00:30]} 33. Qe3 {[%emt 0:00:30]} Qh2 {[%emt 0:00:30]} 34. Qf3 {[%emt 0:00:30]} Qd6 {[%emt 0:00:30]} 35. Qe3 {[%emt 0:00:30]} b6 36. Ke2 {[%emt 0:42:34]} c5 {[%emt 0:01:00]} 37. Qd3 {[%emt 0:07:20]} Qe7+ {[%emt 0:06:28]} 38. Kd2 {[%emt 0:00:49]} cxd4 {[%emt 0:06:22]} 39. Qxd4 {[%emt 0:00:21]} Qe4 {[%emt 0:00:28]} 40. Qxe4 {[%emt 0:00:40]} dxe4 {[%emt 0:00:10]} 41. Ke3 {[%emt 0:00:10]} f5 {[%emt 0:00:08]} 42. f3 {[%emt 0:00:14]} exf3 {[%emt 0:00:08]} 43. Kxf3 {[%emt 0:00:06]} g5 {[%emt 0:00:49]} 44. c4 {[%emt 0:00:23]} Ke6 {[%emt 0:00:13]} 45. g3 {[%emt 0:03:30]} Kd6 {[%emt 0:01:17]} 46. b4 {[%emt 0:03:18]} Ke5 {[%emt 0:04:35]} 47. Ke3 {[%emt 0:01:06]} f4+ {[%emt 0:01:09]} 48. gxf4+ {[%emt 0:00:15]} gxf4+ {[%emt 0:00:08]} 49. Kf3 {[%emt 0:09:41]} Kd4 {[%emt 0:00:02]} 50. c5 {[%emt 0:00:21]} bxc5 {[%emt 0:00:08]} 51. bxc5 {[%emt 0:00:03]} Kxc5 {[%emt 0:00:03]} 52. Kxf4 {[%emt 0:00:06]} Kc4 {[%emt 0:01:32]} 53. Kg5 {[%emt 0:00:24]} Kb3 {[%emt 0:00:09]} 54. Kh6 {[%emt 0:00:06]} Kxa3 {[%emt 0:00:21]} 55. Kxh7 {[%emt 0:00:07]} Kb3 {[%emt 0:00:21]} 56. Kg8 {[%emt 0:00:22]} 1/2-1/2

[Event "HUN-chT Youth 2019"]
[Site "Budapest"]
[Date "2019.10.29"]
[Round "7.36"]
[White "Berecz, Kristof"]
[Black "Nyuli, Leila"]
[Result "1-0"]
[ECO "C26"]
[WhiteElo "1469"]
[BlackElo "1258"]
[Annotator "NA"]
[PlyCount "71"]
[EventDate "2019.10.26"]
[EventType "team-tourn"]
[EventCountry "HUN"]
[SourceTitle "playchess.com"]
[Source "ChessBase"]
[SourceQuality "1"]
[TimeControl "5400+30"]

1. e4 {[%emt 0:00:00]} e5 {[%emt 0:00:00]} 2. Nc3 {[%emt 0:00:00]} Nf6 {[%emt 0:00:00]} 3. Bc4 {[%emt 0:00:43]} Bc5 {[%emt 0:00:52]} 4. d3 {[%emt 0:01:19]} d6 {[%emt 0:01:00]} 5. h3 {[%emt 0:01:19]} h6 {[%emt 0:00:36]} 6. Nge2 {[%emt 0:04:30]} Nc6 {[%emt 0:01:28]} 7. Na4 {[%emt 0:03:44]} a6 {[%emt 0:02:14]} 8. Nxc5 {[%emt 0:01:24]} dxc5 {[%emt 0:00:22]} 9. a3 {[%emt 0:00:27]} b5 {[%emt 0:00:38]} 10. Ba2 {[%emt 0:00:18]} Bb7 {[%emt 0:00:51]} 11. O-O {[%emt 0:02:21]} Ne7 {[%emt 0:05:14]} 12. f4 {[%emt 0:02:53]} exf4 {[%emt 0:01:22]} 13. Bxf4 {[%emt 0:02:52]} Ng6 {[%emt 0:00:45]} 14. Bh2 {[%emt 0:01:35]} O-O {[%emt 0:02:08]} 15. Kh1 {[%emt 0:13:17]} Qd7 {[%emt 0:01:20]} 16. Nf4 {[%emt 0:01:01]} Nxf4 {[%emt 0:00:56]} 17. Bxf4 {[%emt 0:00:07]} Qc6 {[%emt 0:01:12]} 18. Qe2 {[%emt 0:01:17]} Rfe8 {[%emt 0:01:28]} 19. Qf2 {[%emt 0:02:09]} c4 {[%emt 0:02:21]} 20. Rac1 {[%emt 0:11:24]} Re7 {[%emt 0:03:33]} 21. Bxh6 {[%emt 0:20:37]} Nxe4 {[%emt 0:04:23]} 22. dxe4 {[%emt 0:03:10]} Qxh6 {[%emt 0:00:12]} 23. Qf4 {[%emt 0:05:15]} Qxf4 {[%emt 0:00:27]} 24. Rxf4 {[%emt 0:00:07]} Rxe4 {[%emt 0:00:32]} 25. Rf2 {[%emt 0:00:55]} Rae8 {[%emt 0:00:22]} 26. Rcf1 {[%emt 0:00:45]} Re2 {[%emt 0:00:28]} 27. Kg1 {[%emt 0:01:56]} Rxf2 {[%emt 0:01:26]} 28. Kxf2 {[%emt 0:00:29]} Re6 {[%emt 0:00:33]} 29. Rd1 {[%emt 0:01:10]} Rg6 {[%emt 0:02:02]} 30. g3 {[%emt 0:02:21]} Rf6+ {[%emt 0:00:24]} 31. Kg1 {[%emt 0:02:25]} Rf3 {[%emt 0:00:37]} 32. g4 {[%emt 0:02:08]} Rxh3 {[%emt 0:00:15]} 33. Kf2 {[%emt 0:00:28]} Rh2+ {[%emt 0:00:32]} 34. Ke3 {[%emt 0:00:57]} Rxc2 {[%emt 0:00:18]} 35. Bb1 {[%emt 0:00:18]} Rxb2 {[%emt 0:00:13]} 36. Rd8# 1-0